bitfinex-derivatives/quotes_BTCF0:USTF0_20250930
["timestamp","ask_amount","ask_price","bid_price","bid_amount"]
[1759272246684,1.2593827,113940.0,113930.0,0.2027663]
[1759272246886,1.94463275,113940.0,113930.0,0.1150159]
[1759272251389,1.94463275,113940.0,113930.0,0.202766]
[1759272258195,2.2692397,113940.0,113930.0,0.202766]
[1759272259693,1.6201827,113940.0,113930.0,0.202766]
[1759272259890,2.2692397,113940.0,113930.0,0.202766]
[1759272260391,1.6201827,113940.0,113930.0,0.202766]
[1759272260695,1.9443512,113940.0,113930.0,0.5272945]
[1759272260893,1.9443512,113940.0,113930.0,0.4484186]
[1759272261396,1.9443512,113940.0,113930.0,0.52733538]
[1759272261790,1.9443512,113940.0,113930.0,0.4484186]
[1759272263397,1.9443512,113940.0,113930.0,0.5584642]
[1759272264196,1.9443512,113940.0,113930.0,0.52732818]
[1759272265097,1.5835512,113940.0,113930.0,0.52732818]
[1759272267398,1.5835512,113940.0,113930.0,0.20279968]
[1759272267603,0.7730712,113940.0,113930.0,0.52732818]
[1759272267897,1.5834712,113940.0,113930.0,0.52732818]
[1759272268100,0.7730712,113940.0,113930.0,0.20279968]
[1759272268300,1.2225912,113940.0,113930.0,0.52732818]
[1759272268490,1.2225912,113940.0,113930.0,0.4484186]
[1759272269099,0.4122712,113940.0,113930.0,0.4484186]
[1759272269295,1.2225912,113940.0,113930.0,0.4484186]
[1759272274204,1.2225912,113940.0,113930.0,0.5584642]
[1759272276409,0.4122712,113940.0,113930.0,0.5584642]
[1759272276612,0.0877427,113940.0,113930.0,0.5584642]
[1759272276810,0.8979027,113940.0,113930.0,0.5584642]
[1759272277012,1.2224312,113940.0,113930.0,0.5584642]
[1759272279016,0.8979027,113940.0,113930.0,0.5584642]
[1759272279319,1.2224312,113940.0,113930.0,0.5584642]
[1759272281017,0.8979027,113940.0,113930.0,0.5584642]
[1759272281218,1.2224312,113940.0,113930.0,0.5584642]
[1759272283317,0.4122712,113940.0,113930.0,0.5584642]
[1759272283521,1.2222712,113940.0,113930.0,0.5584642]
[1759272283724,0.8977427,113940.0,113930.0,0.5584642]
[1759272283921,1.2222312,113940.0,113930.0,0.5584642]
[1759272284321,0.4122712,113940.0,113930.0,0.5584642]
[1759272284620,1.2222312,113940.0,113930.0,0.5584642]
[1759272285515,0.0877427,113940.0,113930.0,0.5584642]
[1759272285716,1.2221912,113940.0,113930.0,0.5584642]
[1759272286820,0.0877427,113940.0,113930.0,0.5584642]
[1759272287118,1.2221912,113940.0,113930.0,0.5584642]
[1759272287318,0.8976627,113940.0,113930.0,0.5584642]
[1759272289422,0.8976627,113940.0,113930.0,0.63738212]
[1759272289620,0.8976627,113940.0,113930.0,0.52733652]
[1759272289820,0.8975827,113940.0,113930.0,0.52733652]
[1759272290522,0.8975827,113940.0,113930.0,0.4484186]
[1759272293030,0.7730679,113950.0,113940.0,0.1225331]
[1759272293231,0.7730679,113950.0,113940.0,0.52599529]
[1759272293232,1.5827879,113950.0,113940.0,0.52599529]
[1759272294140,1.2582594,113950.0,113940.0,0.52599529]
[1759272294330,1.5827879,113950.0,113940.0,0.52599529]
[1759272299637,1.2582594,113950.0,113940.0,0.52599529]
[1759272299834,1.5827879,113950.0,113940.0,0.20146679]
[1759272300238,1.5827879,113950.0,113940.0,0.20146669]
[1759272300437,1.5827879,113950.0,113940.0,0.11372369]
[1759272300633,1.5827879,113950.0,113940.0,0.20146669]
[1759272302540,1.5827879,113950.0,113940.0,0.11372369]
[1759272303030,1.9073164,113950.0,113940.0,0.09220369]
[1759272303637,1.5827879,113950.0,113940.0,0.11372369]
[1759272304237,0.7730679,113950.0,113940.0,0.11412369]
[1759272304438,1.2578994,113950.0,113940.0,0.11412369]
[1759272304638,1.5824279,113950.0,113940.0,0.11412369]
[1759272305834,0.7730679,113950.0,113940.0,0.20186599]
[1759272306039,1.5824279,113950.0,113940.0,0.20186599]
[1759272306339,0.7730679,113950.0,113940.0,0.20186599]
[1759272306539,1.5823879,113950.0,113940.0,0.20186599]
[1759272308739,0.7730679,113950.0,113940.0,0.20186599]
[1759272309043,1.5823479,113950.0,113940.0,0.20186599]
[1759272309537,1.5823079,113950.0,113940.0,0.20186599]
[1759272311544,0.7730679,113950.0,113940.0,0.20186599]
[1759272311742,1.5822679,113950.0,113940.0,0.20186599]
[1759272312144,0.4485394,113950.0,113940.0,0.20186599]
[1759272312445,1.5822679,113950.0,113940.0,0.20186599]
[1759272314444,1.5822279,113950.0,113940.0,0.20186599]
[1759272315044,0.4485394,113950.0,113940.0,0.20186599]
[1759272315249,1.5822279,113950.0,113940.0,0.20186599]
[1759272315644,1.5821879,113950.0,113940.0,0.20186599]
[1759272318745,1.5821879,113950.0,113940.0,0.11412369]
[1759272320353,1.58215157,113950.0,113940.0,0.11412369]
[1759272323051,1.58215157,113950.0,113940.0,0.20186789]
[1759272324052,1.58215157,113950.0,113940.0,0.11412369]
[1759272326153,1.2576594,113950.0,113940.0,0.11412369]
[1759272326454,1.58215157,113950.0,113940.0,0.11412369]
[1759272332260,1.2576594,113950.0,113940.0,0.11412369]
[1759272332461,1.58215157,113950.0,113940.0,0.11412369]
[1759272333359,0.4485394,113950.0,113940.0,0.11412369]
[1759272333560,1.58175157,113950.0,113940.0,0.11412369]
[1759272333859,1.58175157,113950.0,113940.0,0.03519]
[1759272334162,0.77303157,113950.0,113940.0,0.03519]
[1759272334353,1.2572194,113950.0,113940.0,0.03519]
[1759272334663,1.58171157,113950.0,113940.0,0.03519]
[1759272336460,1.58167157,113950.0,113940.0,0.03519]
[1759272337363,1.58167157,113950.0,113940.0,0.11416972]
[1759272338861,1.58167157,113950.0,113940.0,0.09264972]
[1759272339767,1.58167157,113950.0,113940.0,0.11533972]
[1759272360178,0.77303157,113950.0,113940.0,0.11533972]
[1759272360391,1.58119157,113950.0,113940.0,0.11533972]
[1759272361074,1.58119157,113950.0,113940.0,0.09264972]
[1759272362180,1.58119157,113950.0,113940.0,0.09224972]
[1759272362476,1.58119157,113950.0,113940.0,0.09264972]
[1759272363078,2.30568374,113950.0,113940.0,0.07644731]
[1759272363378,1.98111157,113950.0,113940.0,0.07684731]
[1759272363679,1.17303157,113950.0,113940.0,0.07684731]
[1759272363881,1.98111157,113950.0,113940.0,0.07684731]
[1759272364272,1.17303157,113950.0,113940.0,0.07684731]
[1759272364469,1.98107157,113950.0,113940.0,0.07684731]
[1759272365175,0.77303157,113950.0,113940.0,0.09789731]
[1759272365483,1.2565794,113950.0,113940.0,0.03472]
[1759272365779,0.4485394,113950.0,113940.0,0.03472]
[1759272365979,1.58107157,113950.0,113940.0,0.03472]
[1759272366182,1.58103157,113950.0,113940.0,0.03472]
[1759272366576,0.77303157,113950.0,113940.0,0.03472]
[1759272366780,1.58103157,113950.0,113940.0,0.03472]
[1759272367286,0.77303157,113950.0,113940.0,0.03472]
[1759272367581,1.58103157,113950.0,113940.0,0.03472]
[1759272368077,0.77303157,113950.0,113940.0,0.03472]
[1759272368283,1.58103157,113950.0,113940.0,0.03472]
[1759272368679,0.4485394,113950.0,113940.0,0.1224642]
[1759272368982,1.58099157,113950.0,113940.0,0.1224642]
[1759272369585,1.2564994,113950.0,113940.0,0.1224642]
[1759272369776,1.58099157,113950.0,113940.0,0.1224642]
[1759272370480,0.77303157,113950.0,113940.0,0.1224642]
[1759272370678,1.58095157,113950.0,113940.0,0.1224642]
[1759272371584,1.2564594,113950.0,113940.0,0.1224642]
[1759272371784,1.58095157,113950.0,113940.0,0.1224642]
[1759272372684,1.58095157,113950.0,113940.0,0.03472]
[1759272372886,1.58095157,113950.0,113940.0,0.11369972]
[1759272373089,1.2564594,113950.0,113940.0,0.11369972]
[1759272373284,1.58095157,113950.0,113940.0,0.11369972]
[1759272377187,1.2564594,113950.0,113940.0,0.11369972]
[1759272377394,1.58095157,113950.0,113940.0,0.11369972]
[1759272382293,1.58091798,113950.0,113940.0,0.11369972]
[1759272383491,1.2564594,113950.0,113940.0,0.11369972]
[1759272383788,1.58091798,113950.0,113940.0,0.11369972]
[1759272383986,1.58091798,113950.0,113940.0,0.4381583]
[1759272384390,1.22011798,113950.0,113940.0,0.4381583]
[1759272384591,1.58091798,113950.0,113940.0,0.4381583]
[1759272384790,1.2564594,113950.0,113940.0,0.4381583]
[1759272385096,1.58091798,113950.0,113940.0,0.4381583]
[1759272395101,1.58091798,113950.0,113940.0,0.5259025]
[1759272395496,1.58091798,113950.0,113940.0,0.55696838]
[1759272396702,1.58091798,113950.0,113940.0,0.52590695]
[1759272397303,1.2564594,113950.0,113940.0,0.52590695]
[1759272397604,1.58091798,113950.0,113940.0,0.52590695]
[1759272400392,1.2564594,113950.0,113940.0,0.52590695]
[1759272400593,1.49317858,113950.0,113940.0,0.52590695]
[1759272401004,1.16872,113950.0,113940.0,1.25036553]
[1759272401196,1.16872,113950.0,113940.0,1.28142696]
[1759272401801,1.16872,113950.0,113940.0,0.88142696]
[1759272407098,1.16872,113950.0,113940.0,0.77138136]
[1759272407803,1.16872,113950.0,113940.0,0.85030267]
[1759272408001,1.16872,113950.0,113940.0,0.88142696]
[1759272408196,1.2564565,113950.0,113940.0,0.88142696]
[1759272410106,1.2564565,113950.0,113940.0,0.2325098]
[1759272410413,1.2564565,113950.0,113940.0,0.88142696]
[1759272410601,1.16872,113950.0,113940.0,1.28142696]
[1759272410801,0.3608,113950.0,113940.0,1.28142696]
[1759272412708,1.58011318,113960.0,113950.0,0.1229366]
[1759272412905,1.21931318,113960.0,113950.0,0.52630707]
[1759272413703,0.8948546,113960.0,113950.0,0.52630707]
[1759272414206,0.448522,113970.0,113960.0,0.1229279]
[1759272414411,1.255522,113970.0,113960.0,0.83496585]
[1759272414611,1.255522,113970.0,113960.0,0.51050727]
[1759272414910,1.255522,113970.0,113960.0,0.83496585]
[1759272416109,1.255522,113970.0,113960.0,0.51050727]
[1759272416611,1.255522,113970.0,113960.0,0.84386935]
[1759272417510,1.255522,113970.0,113960.0,0.78074856]
[1759272418406,1.255522,113970.0,113960.0,0.85966045]
[1759272418712,0.807,113970.0,113960.0,0.85966045]
[1759272424412,0.77297698,113980.0,113970.0,0.1015506]
[1759272424616,1.57965698,113980.0,113970.0,0.510396]
[1759272424805,1.2551984,113980.0,113970.0,0.510396]
[1759272425008,1.57965698,113980.0,113970.0,0.510396]
[1759272425310,1.2551984,113980.0,113970.0,0.510396]
[1759272425812,1.57965698,113980.0,113970.0,0.510396]
[1759272428420,1.2551984,113980.0,113970.0,0.510396]
[1759272428621,1.57965698,113980.0,113970.0,0.510396]
[1759272429423,1.2551984,113980.0,113970.0,0.510396]
[1759272429625,1.57965698,113980.0,113970.0,0.510396]
[1759272430121,1.16748,113980.0,113970.0,0.510396]
[1759272430318,1.16748,113980.0,113970.0,0.52629107]
[1759272430625,1.2551938,113980.0,113970.0,0.52629107]
[1759272430820,1.2551938,113980.0,113970.0,0.44737918]
[1759272431524,1.57965238,113980.0,113970.0,0.0352]
[1759272431918,1.90411096,113980.0,113970.0,0.07683118]
[1759272432118,1.90411096,113980.0,113970.0,0.07723118]
[1759272432520,1.2551938,113980.0,113970.0,0.09860118]
[1759272432724,1.90411096,113980.0,113970.0,0.09860118]
[1759272436335,1.2551938,113980.0,113970.0,0.09860118]
[1759272436535,1.90411096,113980.0,113970.0,0.09860118]
[1759272438839,1.2551938,113980.0,113970.0,0.09860118]
[1759272439136,1.90411096,113980.0,113970.0,0.09860118]
[1759272439336,1.2551938,113980.0,113970.0,0.09860118]
[1759272439535,1.90411096,113980.0,113970.0,0.09860118]
[1759272440435,1.90411096,113980.0,113970.0,0.11451189]
[1759272441530,1.90411096,113980.0,113970.0,0.0356]
[1759272442230,1.57950326,113980.0,113970.0,0.11451189]
[1759272446140,0.77282326,113980.0,113970.0,0.11451189]
[1759272446338,1.57902326,113980.0,113970.0,0.11451189]
[1759272447944,0.4485138,113980.0,113970.0,0.20223339]
[1759272448244,1.2546738,113980.0,113970.0,0.20223339]
[1759272448439,1.2546738,113980.0,113970.0,0.52654285]
[1759272451148,0.4485138,113980.0,113970.0,0.52654285]
[1759272451349,1.2546338,113980.0,113970.0,0.52654285]
[1759272452449,0.4485138,113980.0,113970.0,0.52654285]
[1759272452648,1.2546338,113980.0,113970.0,0.52654285]
[1759272454751,0.4485138,113980.0,113970.0,0.52654285]
[1759272454953,1.2545938,113980.0,113970.0,0.52654285]
[1759272455752,0.4485138,113980.0,113970.0,0.52654285]
[1759272455952,1.2545538,113980.0,113970.0,0.52654285]
[1759272456255,0.4485138,113980.0,113970.0,0.52654285]
[1759272456545,0.3608,113980.0,113970.0,0.52654285]
[1759272456752,1.16684,113980.0,113970.0,0.52654285]
[1759272458052,1.2545538,113980.0,113970.0,0.52654285]
[1759272460248,0.4485138,113980.0,113970.0,0.52654285]
[1759272460449,1.2544738,113980.0,113970.0,0.52654285]
[1759272464057,1.2544338,113980.0,113970.0,0.52654285]
[1759272466750,0.4485138,113980.0,113970.0,0.52654285]
[1759272466951,1.2543538,113980.0,113970.0,0.52654285]
[1759272467357,1.2543538,113980.0,113970.0,0.58970635]
[1759272467547,1.2543538,113980.0,113970.0,0.51079446]
[1759272467752,0.4485138,113980.0,113970.0,0.51079446]
[1759272467956,0.34654115,113980.0,113970.0,0.77194042]
[1759272468258,0.3608,113990.0,113980.0,0.1227538]
[1759272468459,1.1666,113990.0,113980.0,0.52599858]
[1759272468758,1.2543061,113990.0,113980.0,0.52599858]
[1759272470158,1.2543061,113990.0,113980.0,0.20168912]
[1759272470561,1.2543061,113990.0,113980.0,0.52599858]
[1759272473659,0.3608,113990.0,113980.0,0.52599858]
[1759272473862,1.16648,113990.0,113980.0,0.52599858]
[1759272474569,0.4484965,114010.0,114000.0,0.03504]
[1759272474761,1.2541365,114010.0,114000.0,0.42246042]
[1759272475161,1.2545365,114010.0,114000.0,0.42246042]
[1759272475367,1.2545365,114010.0,114000.0,0.09815096]
[1759272475864,1.2545365,114010.0,114000.0,0.107075]
[1759272478069,1.2545365,114010.0,114000.0,0.04396404]
[1759272478366,1.2545365,114010.0,114000.0,0.12289936]
[1759272479167,1.2545365,114010.0,114000.0,0.13166244]
[1759272479367,1.2545365,114010.0,114000.0,0.19466679]
[1759272479570,1.2545365,114010.0,114000.0,0.51897625]
[1759272480565,0.4488907,114010.0,114000.0,0.51897625]
[1759272480764,1.2543707,114010.0,114000.0,0.51897625]
[1759272480970,1.2543707,114010.0,114000.0,0.19466679]
[1759272481162,1.2539707,114010.0,114000.0,0.51897625]
[1759272481361,1.2543707,114010.0,114000.0,0.51897625]
[1759272482664,1.16668,114010.0,114000.0,0.51897625]
[1759272483765,1.1666,114010.0,114000.0,0.91897625]
[1759272483966,0.8058,114010.0,114000.0,1.27977625]
[1759272484768,0.80576,114010.0,114000.0,1.27977625]
[1759272485073,0.80536,114010.0,114000.0,1.27977625]
[1759272485267,0.80576,114010.0,114000.0,1.27977625]
[1759272486769,0.0004,114010.0,114000.0,1.27977625]
[1759272490172,0.0004,114010.0,114000.0,1.54108136]
[1759272490472,0.0004,114010.0,114000.0,1.62001668]
[1759272490669,0.8938036,114020.0,114010.0,0.1227295]
[1759272490670,0.8930036,114020.0,114010.0,0.1227295]
[1759272490973,0.8930036,114020.0,114010.0,0.50995855]
[1759272493273,0.0876836,114020.0,114010.0,0.50995855]
[1759272494073,0.0876836,114020.0,114010.0,0.09795959]
[1759272494372,0.77279306,114020.0,114010.0,0.09795959]
[1759272494578,0.77279306,114020.0,114010.0,0.03544]
[1759272495777,0.4484836,114020.0,114010.0,0.1231309]
[1759272496181,0.4484836,114020.0,114010.0,0.03544]
[1759272497974,0.4484836,114020.0,114010.0,0.09835959]
[1759272500079,0.4484836,114020.0,114010.0,0.11437532]
[1759272503185,0.4484836,114020.0,114010.0,0.01309]
[1759272503373,0.4484836,114020.0,114010.0,0.0352]
[1759272504084,0.4484836,114020.0,114010.0,0.11413532]
[1759272504286,0.77255118,114020.0,114010.0,0.4382029]
[1759272505189,0.4484836,114020.0,114010.0,0.4382029]
[1759272505384,0.77255118,114020.0,114010.0,0.4382029]
[1759272506687,1.57739118,114020.0,114010.0,0.5258938]
[1759272507595,0.77255118,114020.0,114010.0,0.5258938]
[1759272507895,1.57735118,114020.0,114010.0,0.5258938]
[1759272508097,1.2532836,114020.0,114010.0,0.5258938]
[1759272508289,1.57735118,114020.0,114010.0,0.5258938]
[1759272511400,1.57735118,114020.0,114010.0,0.4382029]
[1759272511789,1.57735118,114020.0,114010.0,0.11413532]
[1759272512096,1.57735118,114020.0,114010.0,0.4382029]
[1759272513294,1.90141876,114020.0,114010.0,0.09202532]
[1759272514101,2.31023153,114020.0,114010.0,0.09162532]
[1759272514392,1.50543153,114020.0,114010.0,0.09162532]
[1759272514598,2.31011153,114020.0,114010.0,0.09202532]
[1759272514801,1.50543153,114020.0,114010.0,0.09162532]
[1759272515000,2.30129876,114020.0,114010.0,0.09202532]
[1759272515191,2.30129876,114020.0,114010.0,0.01309]
[1759272515392,2.30129876,114020.0,114010.0,0.09202532]
[1759272515701,1.49661876,114020.0,114010.0,0.09202532]
[1759272515900,2.30129876,114020.0,114010.0,0.09202532]
[1759272518003,2.30996468,114020.0,114010.0,0.09202532]
[1759272519503,1.90996468,114020.0,114010.0,0.09162532]
[1759272519805,1.1168842,114020.0,114010.0,0.09162532]
[1759272520105,1.10821828,114020.0,114010.0,0.25687173]
[1759272520305,0.7841507,114020.0,114010.0,0.60304931]
[1759272520604,1.5891507,114020.0,114010.0,0.60304931]
[1759272522104,1.5891507,114020.0,114010.0,0.69074001]
[1759272524408,0.7845507,114020.0,114010.0,0.69074001]
[1759272524607,1.5891507,114020.0,114010.0,0.69074001]
[1759272525306,0.7845507,114020.0,114010.0,0.69074001]
[1759272525609,1.5891107,114020.0,114010.0,0.69074001]
[1759272527513,1.5891107,114020.0,114010.0,0.60304931]
[1759272529310,1.5891107,114020.0,114010.0,0.69074001]
[1759272533809,1.5889907,114020.0,114010.0,0.67490574]
[1759272540119,0.7845507,114020.0,114010.0,0.67490574]
[1759272540318,1.5887907,114020.0,114010.0,0.67490574]
[1759272542122,1.5887907,114020.0,114010.0,0.61180469]
[1759272542325,1.26472312,114020.0,114010.0,0.60304931]
[1759272542622,1.5887907,114020.0,114010.0,0.60304931]
[1759272543219,1.5887907,114020.0,114010.0,0.69074001]
[1759272544222,0.46048312,114020.0,114010.0,0.69074001]
[1759272544624,1.26424312,114020.0,114010.0,0.61180469]
[1759272544817,1.26464312,114020.0,114010.0,0.61180469]
[1759272545322,1.26464312,114020.0,114010.0,0.72185029]
[1759272545726,0.46048312,114020.0,114010.0,0.72185029]
[1759272545919,1.26460312,114020.0,114010.0,0.61180469]
[1759272546212,1.26420312,114020.0,114010.0,0.61180469]
[1759272546725,1.26460312,114020.0,114010.0,0.61180469]
[1759272548023,1.26416312,114020.0,114010.0,1.01180469]
[1759272548219,1.26456312,114020.0,114010.0,1.01180469]
[1759272548825,1.17687952,114020.0,114010.0,1.09071318]
[1759272550425,1.17687952,114020.0,114010.0,1.01180469]
[1759272551216,1.17687952,114020.0,114010.0,0.68773711]
[1759272551421,1.17687952,114020.0,114010.0,1.01180469]
[1759272551621,1.26456252,114020.0,114010.0,1.12185029]
[1759272553220,1.26456252,114020.0,114010.0,0.79778271]
[1759272553422,1.26456252,114020.0,114010.0,1.12185029]
[1759272554125,0.90376252,114020.0,114010.0,1.12185029]
[1759272554326,0.81607952,114020.0,114010.0,1.12185029]
[1759272555329,0.81607952,114020.0,114010.0,1.01180469]
[1759272560030,0.81535952,114020.0,114010.0,1.12185029]
[1759272560230,0.81575952,114020.0,114010.0,1.12185029]
[1759272562332,0.81575952,114020.0,114010.0,0.72185029]
[1759272562633,0.81535952,114020.0,114010.0,0.72185029]
[1759272562826,0.81575952,114020.0,114010.0,0.72185029]
[1759272564235,0.81575952,114020.0,114010.0,0.72176385]
[1759272569437,0.81575952,114020.0,114010.0,0.39778271]
[1759272569637,0.81575952,114020.0,114010.0,0.72176385]
[1759272571041,0.90344142,114020.0,114010.0,0.72176385]
[1759272573243,0.90344142,114020.0,114010.0,0.61171825]
[1759272576037,0.90344142,114020.0,114010.0,0.72213781]
[1759272576636,0.81575952,114020.0,114010.0,0.72213781]
[1759272577541,0.90344142,114020.0,114010.0,0.72213781]
[1759272579651,0.90344142,114020.0,114010.0,0.61171825]
[1759272580147,0.90344142,114020.0,114010.0,0.5568914]
[1759272580651,0.8918419,114020.0,114010.0,0.5568914]
[1759272583357,0.0880819,114020.0,114010.0,0.5568914]
[1759272583561,0.80368,114020.0,114010.0,0.5568914]
[1759272584353,0.5369604,114030.0,114010.0,0.5568914]
[1759272584558,1.2517199,114030.0,114020.0,0.11362675]
[1759272584960,1.26331942,114030.0,114020.0,0.11362675]
[1759272585261,1.26331942,114030.0,114020.0,0.27887316]
[1759272585862,1.26331942,114030.0,114020.0,0.25783316]
[1759272586065,1.26331942,114030.0,114020.0,0.27887316]
[1759272586562,1.58730056,114030.0,114020.0,0.27887316]
[1759272587056,1.26331942,114030.0,114020.0,0.27887316]
[1759272588964,1.26331942,114030.0,114020.0,0.19993641]
[1759272589272,1.58730056,114030.0,114020.0,0.19993641]
[1759272589758,1.58730056,114030.0,114020.0,0.27887404]
[1759272593068,1.58730056,114030.0,114020.0,0.19993641]
[1759272593469,1.58730056,114030.0,114020.0,0.27887408]
[1759272595072,1.58730056,114030.0,114020.0,0.19993641]
[1759272596074,1.58730056,114030.0,114020.0,0.27887413]
[1759272596567,1.58730056,114030.0,114020.0,0.36655713]
[1759272596873,1.58730056,114030.0,114020.0,0.27887413]
[1759272599575,0.78406056,114030.0,114020.0,0.27887413]
[1759272599871,1.58698056,114030.0,114020.0,0.27887413]
[1759272600269,1.57645521,114030.0,114020.0,0.27887413]
[1759272601177,0.77353521,114030.0,114020.0,0.27887413]
[1759272601482,1.57645521,114030.0,114020.0,0.27887413]
[1759272601667,1.57641521,114030.0,114020.0,0.27887413]
[1759272601871,1.25243407,114030.0,114020.0,0.69053897]
[1759272602874,0.44955407,114030.0,114020.0,0.69053897]
[1759272603078,0.89159407,114030.0,114020.0,0.69053897]
[1759272603279,0.08875407,114030.0,114020.0,0.69053897]
[1759272603480,0.89159407,114030.0,114020.0,0.69053897]
[1759272604681,0.08875407,114030.0,114020.0,0.69053897]
[1759272604874,0.89159407,114030.0,114020.0,0.69053897]
[1759272605075,0.89159407,114030.0,114020.0,0.61160125]
[1759272606280,0.89155407,114030.0,114020.0,0.61160125]
[1759272606583,0.89155407,114030.0,114020.0,0.72202081]
[1759272606974,0.89155407,114030.0,114020.0,0.61160125]
[1759272607382,0.89155407,114030.0,114020.0,0.72202081]
[1759272607582,0.09927492,114030.0,114020.0,0.72202081]
[1759272607792,0.90199492,114030.0,114020.0,0.72202081]
[1759272608082,0.90239492,114030.0,114020.0,0.72202081]
[1759272608483,0.90239492,114030.0,114020.0,0.39803967]
[1759272608682,0.81471952,114030.0,114020.0,0.72202081]
[1759272608978,0.81471952,114030.0,114020.0,0.80093288]
[1759272609182,0.01159952,114030.0,114020.0,0.69051332]
[1759272609382,0.81471952,114030.0,114020.0,1.05131332]
[1759272609578,0.81431952,114030.0,114020.0,1.05131332]
[1759272609778,0.81471952,114030.0,114020.0,1.05131332]
[1759272610785,0.01199952,114030.0,114020.0,1.05131332]
[1759272610986,0.01199952,114030.0,114020.0,1.11442065]
[1759272611178,0.01199952,114030.0,114020.0,1.43550858]
[1759272611580,0.01159952,114030.0,114020.0,1.37240125]
[1759272611781,0.01199952,114030.0,114020.0,1.37240125]
[1759272615792,0.01199952,114030.0,114020.0,2.17496125]
[1759272617088,0.01199952,114030.0,114020.0,1.37240125]
[1759272617289,0.01199952,114030.0,114020.0,2.17492125]
[1759272617685,0.00147603,114030.0,114020.0,2.68681379]
[1759272617991,0.00147603,114030.0,114020.0,1.99471335]
[1759272618186,0.00107603,114030.0,114020.0,2.79719335]
[1759272618392,0.00147603,114030.0,114020.0,2.79719335]
[1759272619394,0.00147603,114030.0,114020.0,1.99471335]
[1759272619587,0.00147603,114030.0,114020.0,2.79715335]
[1759272619788,0.00147603,114030.0,114020.0,2.47317221]
[1759272619984,0.00147603,114030.0,114020.0,1.56031265]
[1759272620188,0.00147603,114030.0,114020.0,2.68669379]
[1759272620695,0.00147603,114030.0,114020.0,2.79711335]
[1759272621998,0.00147603,114030.0,114020.0,2.79707335]
[1759272624190,0.00147603,114030.0,114020.0,3.12060827]
[1759272626491,0.00147603,114030.0,114020.0,2.75980827]
[1759272626699,0.00147603,114030.0,114020.0,3.48140827]
[1759272627595,0.0884612,114050.0,114040.0,0.1014788]
[1759272627797,0.0884612,114050.0,114040.0,0.7719636]
[1759272629802,0.0884612,114050.0,114040.0,0.7807212]
[1759272632103,0.0884612,114050.0,114040.0,0.6930524]
[1759272632504,0.0884612,114050.0,114040.0,0.4568888]
[1759272633605,0.0884612,114050.0,114040.0,0.44795173]
[1759272634100,0.0884612,114050.0,114040.0,0.53562053]
[1759272634307,0.0884612,114050.0,114040.0,0.44795173]
[1759272634502,0.7730936,114050.0,114040.0,0.44795173]
[1759272634898,0.7730936,114050.0,114040.0,0.4568888]
[1759272637113,0.7730936,114050.0,114040.0,0.36922]
[1759272637315,0.4492612,114050.0,114040.0,0.36922]
[1759272637612,0.4387384,114050.0,114040.0,0.47963956]
[1759272638907,0.4387384,114050.0,114040.0,0.36922]
[1759272639106,0.7625708,114050.0,114040.0,0.36922]
[1759272640012,0.4387384,114050.0,114040.0,0.36922]
[1759272640513,0.7625708,114050.0,114040.0,0.36922]
[1759272641310,0.7625708,114050.0,114040.0,0.3604624]
[1759272641505,1.1625708,114050.0,114040.0,0.11547328]
[1759272641709,1.1625708,114050.0,114040.0,0.11587328]
[1759272641911,0.7625708,114050.0,114040.0,0.12446445]
[1759272643128,1.5643708,114050.0,114040.0,0.44829685]
[1759272643822,1.5643708,114050.0,114040.0,0.12446445]
[1759272644022,1.5643708,114050.0,114040.0,0.44829685]
[1759272645416,1.5643708,114050.0,114040.0,0.43970568]
[1759272645816,1.9643708,114050.0,114040.0,0.01421]
[1759272646020,1.9643708,114050.0,114040.0,0.09265328]
[1759272646321,1.9642508,114050.0,114040.0,0.09305328]
[1759272647722,1.95372718,114050.0,114040.0,0.09305328]
[1759272649520,2.27755958,114050.0,114040.0,0.09305328]
[1759272649718,2.27751958,114050.0,114040.0,0.09305328]
[1759272650020,1.15204718,114050.0,114040.0,0.09265328]
[1759272650219,1.95368718,114050.0,114040.0,0.09305328]
[1759272650422,1.15204718,114050.0,114040.0,0.09305328]
[1759272650719,1.95364718,114050.0,114040.0,0.09305328]
[1759272651425,1.15204718,114050.0,114040.0,0.09305328]
[1759272651617,1.95364718,114050.0,114040.0,0.09305328]
[1759272654326,2.27747958,114050.0,114040.0,0.07730099]
[1759272654524,0.0876688,114040.0,114030.0,0.09265328]
[1759272654718,0.0876688,114040.0,114030.0,0.12422956]
[1759272654719,1.0961336,114040.0,114030.0,0.12422956]
[1759272654918,1.0961336,114040.0,114030.0,0.20309642]
[1759272655116,1.8976536,114040.0,114030.0,0.09267686]
[1759272655318,1.8976536,114040.0,114030.0,0.09307686]
[1759272657525,1.8976536,114040.0,114030.0,0.01421]
[1759272658321,1.5368536,114040.0,114030.0,0.01421]
[1759272658527,2.2584536,114040.0,114030.0,0.01421]
[1759272658727,1.6107888,114040.0,114030.0,0.01421]
[1759272658918,2.2584536,114040.0,114030.0,0.01421]
[1759272659525,2.26714719,114040.0,114030.0,0.01421]
[1759272659726,2.66714719,114040.0,114030.0,0.01421]
[1759272659926,1.86562719,114040.0,114030.0,0.07662023]
[1759272660127,2.66710719,114040.0,114030.0,0.07662023]
[1759272660427,2.66706719,114040.0,114030.0,0.07622023]
[1759272660621,2.66706719,114040.0,114030.0,0.01356]
[1759272661019,2.66706719,114040.0,114030.0,0.07661883]
[1759272661420,2.99089959,114040.0,114030.0,0.06345883]
[1759272662129,0.0771512,114030.0,114020.0,0.01316]
[1759272662330,1.085616,114030.0,114020.0,0.09202686]
[1759272662622,1.887056,114030.0,114020.0,0.09202686]
[1759272662829,1.485616,114030.0,114020.0,0.09202686]
[1759272663321,2.287016,114030.0,114020.0,0.09242686]
[1759272663521,2.287016,114030.0,114020.0,0.09202686]
[1759272663722,2.287016,114030.0,114020.0,0.09242686]
[1759272664430,1.485616,114030.0,114020.0,0.09242686]
[1759272664621,2.287016,114030.0,114020.0,0.09242686]
[1759272664822,1.485616,114030.0,114020.0,0.09242686]
[1759272665029,2.287016,114030.0,114020.0,0.09242686]
[1759272667830,2.287016,114030.0,114020.0,0.01356]
[1759272668032,0.4379512,114030.0,114020.0,0.11545686]
[1759272668244,1.2393112,114030.0,114020.0,0.4481057]
[1759272668529,1.5631436,114030.0,114020.0,0.4481057]
[1759272668735,0.4379512,114030.0,114020.0,0.88235766]
[1759272668936,1.2393112,114030.0,114020.0,0.88235766]
[1759272669137,0.4379512,114030.0,114020.0,0.88235766]
[1759272669439,1.2393112,114030.0,114020.0,1.28235766]
[1759272669830,1.2393112,114030.0,114020.0,0.62578761]
[1759272670031,1.5631436,114030.0,114020.0,0.83920045]
[1759272670334,1.2393112,114030.0,114020.0,0.83920045]
[1759272671733,0.4379512,114030.0,114020.0,0.92688395]
[1759272671938,1.2393112,114030.0,114020.0,0.92688395]
[1759272672236,1.22878644,114030.0,114020.0,0.92688395]
[1759272673642,0.42742644,114030.0,114020.0,0.92688395]
[1759272673944,1.22874644,114030.0,114020.0,1.25071635]
[1759272674441,1.22874644,114030.0,114020.0,0.5242735]
[1759272674641,1.22874644,114030.0,114020.0,1.1719383]